[Event "ISR-ch Women 2018"]
[Site "Ma'alot-Tarshih"]
[Date "2018.12.18"]
[Round "7"]
[White "Lahav, Michal"]
[Black "Vardi, Shlomit"]
[Result "1/2-1/2"]
[ECO "B07"]
[WhiteElo "2059"]
[BlackElo "1910"]
[Annotator "NA"]
[PlyCount "25"]
[EventDate "2018.12.11"]
[EventType "swiss"]
[EventCountry "ISR"]
[SourceTitle "playchess.com"]
[Source "ChessBase"]
[SourceQuality "1"]
[TimeControl "40/5400+30:1800+30"]

1. e4 {[%emt 0:00:00]} d6 {[%emt 0:00:00]} 2. d4 {[%emt 0:00:01]} g6 {[%emt 0:00:00]} 3. Nc3 {[%emt 0:00:04]} Bg7 {[%emt 0:00:00]} 4. h3 {[%emt 0:00:05]} c6 {[%emt 0:01:41]} 5. a4 {[%emt 0:00:07]} Nd7 {[%emt 0:00:28]} 6. g3 {[%emt 0:00:07]} Ngf6 {[%emt 0:00:51]} 7. Bg2 {[%emt 0:00:02]} e5 {[%emt 0:01:02]} 8. Nge2 {[%emt 0:00:06]} O-O {[%emt 0:00:28]} 9. O-O {[%emt 0:00:06]} Re8 {[%emt 0:01:09]} 10. Be3 {[%emt 0:04:07]} exd4 {[%emt 0:04:18]} 11. Bxd4 {[%emt 0:05:16]} Qa5 $14 {[%emt 0:06:26]} 12. Be3 {[%emt 0:08:34]} Nc5 {[%emt 0:01:42]} 13. Qd2 {[%emt 0:37:15]} 1/2-1/2

[Event "ISR-ch Women 2018"]
[Site "Ma'alot-Tarshih"]
[Date "2018.12.18"]
[Round "7"]
[White "Reprun, Nadejda"]
[Black "Shvayger, Yuliya"]
[Result "1/2-1/2"]
[ECO "B84"]
[WhiteElo "2016"]
[BlackElo "2393"]
[Annotator "NA"]
[PlyCount "97"]
[EventDate "2018.12.11"]
[EventType "swiss"]
[EventCountry "ISR"]
[SourceTitle "playchess.com"]
[Source "ChessBase"]
[SourceQuality "1"]
[TimeControl "40/5400+30:1800+30"]

1. e4 {[%emt 0:00:00]} c5 {[%emt 0:01:03]} 2. Nf3 {[%emt 0:00:00]} d6 {[%emt 0:00:07]} 3. d4 {[%emt 0:00:00]} cxd4 {[%emt 0:00:08]} 4. Nxd4 {[%emt 0:00:00]} Nf6 {[%emt 0:00:04]} 5. Nc3 {[%emt 0:00:01]} a6 {[%emt 0:00:04]} 6. Be2 {[%emt 0:00:31]} e6 {[%emt 0:00:25]} 7. O-O {[%emt 0:01:22]} Nbd7 {[%emt 0:01:27]} 8. a4 {[%emt 0:07:26]} b6 {[%emt 0:00:45]} 9. f4 {[%emt 0:03:28]} Bb7 {[%emt 0:00:39]} 10. Bf3 {[%emt 0:01:01]} Qc7 {[%emt 0:05:28] LiveBook: 155 Games} 11. f5 {[%emt 0:07:44] B84: Sicilian Scheveningen: 6 Be2 a6, lines without early Be3} (11. Qe2 Rc8 12. Be3 h5 13. Bf2 Ng4 14. Bxg4 hxg4 15. Qxg4 Nf6 16. Qe2 Qc4 17. Rfe1 Qxe2 18. Rxe2 Ng4 19. Nf3 Nxf2 20. Kxf2 {½-½ (65) Karjakin,S (2783)-Nepomniachtchi,I (2751) chess.com INT 2017}) 11... e5 {[%emt 0:01:57]} 12. Nb3 {[%emt 0:00:26]} h6 {[%emt 1:23:53]} 13. Qe1 {[%emt 0:04:05]} Be7 {[%emt 0:00:00]} 14. Qg3 $146 {[%emt 0:01:47]} ({Predecessor:} 14. Be3 g5 15. fxg6 fxg6 16. Qg3 g5 17. Qh3 O-O-O {1-0 (29) Radovanovic,D (2298)-Siebrecht,S (2379) Chania 1999}) 14... Kf8 {[%emt 0:00:00]} 15. Be3 {[%emt 0:01:26]} Rc8 {[%emt 0:00:00]} 16. Qf2 {[%emt 0:06:09]} Qd8 {[%emt 0:00:00]} 17. Rad1 {[%emt 0:02:16]} Kg8 {[%emt 0:00:00]} 18. g4 {[%emt 0:11:50]} (18. Qe2 $14) 18... Rc4 {[%emt 0:00:00]} 19. Nd2 {[%emt 0:00:53]} Rc8 {[%emt 0:00:00]} 20. Nb3 {[%emt 0:00:05]} Rh7 {[%emt 0:00:00]} 21. Qg2 {[%emt 0:02:40]} Rc4 {[%emt 0:00:00]} 22. Nd2 {[%emt 0:00:20]} Rc7 {[%emt 0:00:00]} 23. Nb3 {[%emt 0:00:25]} (23. Rfe1 $14) 23... Qa8 {[%emt 0:00:00]} 24. Rf2 {[%emt 0:02:49]} Rxc3 {[%emt 0:00:00]} 25. bxc3 {[%emt 0:00:18]} Bxe4 {[%emt 0:00:00]} 26. h3 {[%emt 0:04:41]} Rh8 {[%emt 0:00:00]} 27. c4 {[%emt 0:02:50]} Kh7 {[%emt 0:00:00]} 28. a5 {[%emt 0:01:24]} bxa5 {[%emt 0:00:00]} 29. Nxa5 {[%emt 0:01:16]} Rc8 {[%emt 0:00:00]} 30. Rb1 $15 {[%emt 0:04:16]} Nc5 {[%emt 0:00:00]} 31. Rff1 {[%emt 0:13:39]} Kg8 {[%emt 0:07:16]} 32. Rb2 {[%emt 0:03:45]} Na4 {[%emt 0:00:38]} 33. Bxe4 {[%emt 0:01:18]} Qxe4 {[%emt 0:00:14]} 34. Qxe4 {[%emt 0:00:37]} Nxe4 {[%emt 0:00:01]} 35. Rb4 {[%emt 0:01:21]} Nac3 {[%emt 0:00:16]} 36. Rb6 {[%emt 0:01:19]} Bd8 {[%emt 0:02:05]} 37. Rxa6 {[%emt 0:00:22]} Bxa5 {[%emt 0:00:07]} 38. Rxa5 {[%emt 0:00:05]} Rxc4 {[%emt 0:00:06]} 39. Kg2 {[%emt 0:05:19]} d5 {[%emt 0:00:10]} 40. h4 {[%emt 0:02:11]} d4 {[%emt 0:02:06]} 41. Bc1 {[%emt 0:30:17]} Nc5 {[%emt 0:22:12]} 42. g5 {[%emt 0:00:00]} Kh7 {[%emt 0:01:38]} 43. Ra7 {[%emt 0:00:00]} N3e4 {[%emt 0:00:48]} 44. Rxf7 {[%emt 0:00:00]} Rxc2+ {[%emt 0:00:02]} 45. Kh3 {[%emt 0:00:00]} Rc3+ {[%emt 0:02:37]} 46. Kh2 {[%emt 0:00:00]} Rc2+ {[%emt 0:00:12]} 47. Kh3 {[%emt 0:00:00]} Rc3+ {[%emt 0:00:05]} 48. Kh2 {[%emt 0:00:00]} Rc2+ {[%emt 0:01:19]} 49. Kg1 {[%emt 0:12:48]} 1/2-1/2

[Event "ISR-ch Women 2018"]
[Site "Ma'alot-Tarshih"]
[Date "2018.12.18"]
[Round "7"]
[White "Buzukashvili, Sofia"]
[Black "Efroimski, Marsel"]
[Result "0-1"]
[ECO "A15"]
[WhiteElo "1963"]
[BlackElo "2301"]
[Annotator "NA"]
[PlyCount "110"]
[EventDate "2018.12.11"]
[EventType "swiss"]
[EventCountry "ISR"]
[SourceTitle "playchess.com"]
[Source "ChessBase"]
[SourceQuality "1"]
[TimeControl "40/5400+30:1800+30"]

1. Nf3 {[%emt 0:00:11]} Nf6 {[%emt 0:04:16]} 2. c4 {[%emt 0:00:29]} g6 {[%emt 0:04:02]} 3. g3 {[%emt 0:00:25]} Bg7 {[%emt 0:00:25]} 4. Bg2 {[%emt 0:00:36]} O-O {[%emt 0:00:40]} 5. O-O {[%emt 0:00:10]} d6 {[%emt 0:02:39]} 6. d4 {[%emt 0:01:10]} Bf5 {[%emt 0:10:06]} 7. Nc3 {[%emt 0:01:03]} Qc8 {[%emt 0:02:51] LiveBook: 12 Games} 8. b3 {[%emt 0:09:33]} Bh3 {[%emt 0:04:53]} 9. Bb2 {[%emt 0:02:16]} c6 {[%emt 0:10:02]} 10. Rc1 {[%emt 0:05:24] A15: English Opening: 1...Nf6} Bh6 $146 {[%emt 0:07:59]} ({Predecessor:} 10... Bxg2 11. Kxg2 a5 12. e4 Na6 13. Qe2 Nc7 14. Rfd1 Ne6 15. d5 Nc5 16. Ba3 Nfd7 17. Ne1 Re8 {0-1 (51) Markowski,T (2598)-Efimenko,Z (2660) Plovdiv 2008}) 11. e3 {[%emt 0:08:22]} Na6 {[%emt 0:00:37]} 12. d5 {[%emt 0:05:29]} Nc7 {[%emt 0:05:29]} 13. Nd2 {[%emt 0:08:02]} Bxg2 {[%emt 0:07:51]} 14. Kxg2 {[%emt 0:00:06]} Bg7 {[%emt 0:07:30]} 15. dxc6 {[%emt 0:09:19]} bxc6 {[%emt 0:00:19]} 16. Nce4 {[%emt 0:03:05]} (16. f4 $11 {keeps the balance.}) 16... Nxe4 {[%emt 0:05:39]} 17. Bxg7 {[%emt 0:02:46]} Nxf2 {[%emt 0:04:52]} 18. Rxf2 {[%emt 0:01:37]} Kxg7 {[%emt 0:00:03]} 19. Qf3 {[%emt 0:05:43]} c5 $17 {[%emt 0:04:22]} 20. Ne4 {[%emt 0:02:21]} Qb7 {[%emt 0:02:31]} 21. Rd1 {[%emt 0:05:07]} f5 {[%emt 0:03:40]} 22. Nc3 {[%emt 0:00:47]} Qxf3+ {[%emt 0:00:08]} 23. Rxf3 {[%emt 0:00:33]} Rf6 {[%emt 0:00:34]} 24. Rf2 {[%emt 0:08:48]} Re6 {[%emt 0:00:19]} 25. Rd3 {[%emt 0:00:56]} Rb8 {[%emt 0:02:34]} 26. Re2 {[%emt 0:01:02]} Re5 {[%emt 0:00:50]} 27. Kf2 {[%emt 0:01:48]} Kf7 {[%emt 0:00:55]} 28. Red2 {[%emt 0:00:29]} Na6 {[%emt 0:02:12]} 29. Nb5 {[%emt 0:02:11]} Nb4 {[%emt 0:00:54]} 30. Rc3 {[%emt 0:00:08]} a6 {[%emt 0:01:39]} 31. Nc7 {[%emt 0:06:58]} Rb7 {[%emt 0:00:35]} 32. Nd5 {[%emt 0:00:32]} Nxd5 {[%emt 0:00:16]} 33. cxd5 {[%emt 0:00:13]} Re4 {[%emt 0:00:26]} 34. Rc4 {[%emt 0:01:40]} Rxc4 {[%emt 0:00:34]} 35. bxc4 {[%emt 0:00:05]} Rb4 {[%emt 0:00:09]} 36. Rc2 {[%emt 0:00:10]} Kf6 {[%emt 0:01:04]} 37. Ke2 {[%emt 0:00:25]} Ke5 {[%emt 0:00:24]} 38. Kf3 {[%emt 0:03:14]} a5 {[%emt 0:02:22]} 39. h4 {[%emt 0:00:46]} h5 {[%emt 0:00:07]} 40. Rc3 {[%emt 0:03:42]} a4 {[%emt 0:02:27]} 41. Rc2 {[%emt 0:30:24]} e6 {[%emt 0:19:02]} 42. dxe6 {[%emt 0:00:00]} Kxe6 {[%emt 0:00:03]} 43. Rc3 {[%emt 0:00:00]} d5 {[%emt 0:02:41]} 44. cxd5+ {[%emt 0:00:00]} Kxd5 {[%emt 0:00:01]} 45. Rd3+ {[%emt 0:00:00]} Kc4 {[%emt 0:02:03]} 46. Rd6 {[%emt 0:00:00]} Rb2 {[%emt 0:00:29]} 47. Rxg6 {[%emt 0:00:00]} Rxa2 {[%emt 0:00:03]} 48. Ra6 {[%emt 0:00:00]} a3 {[%emt 0:04:10]} 49. Kf4 {[%emt 0:01:55]} Rf2+ {[%emt 0:00:41]} 50. Kg5 {[%emt 0:00:04]} a2 {[%emt 0:00:27]} 51. Kxh5 {[%emt 0:00:18]} Kb3 {[%emt 0:00:07]} 52. Ra5 {[%emt 0:00:10]} c4 {[%emt 0:00:51]} 53. Kg6 {[%emt 0:01:20]} Kb2 {[%emt 0:00:18]} 54. Rb5+ {[%emt 0:00:20]} Kc1 {[%emt 0:00:07]} 55. Ra5 {[%emt 0:00:51]} Kb1 {[%emt 0:00:04]} 0-1

[Event "ISR-ch Women 2018"]
[Site "Ma'alot-Tarshih"]
[Date "2018.12.18"]
[Round "7"]
[White "Levitan, Ronit"]
[Black "Haitovich, Avital"]
[Result "1/2-1/2"]
[ECO "B22"]
[WhiteElo "1875"]
[BlackElo "1979"]
[Annotator "NA"]
[PlyCount "90"]
[EventDate "2018.12.11"]
[EventType "swiss"]
[EventCountry "ISR"]
[SourceTitle "playchess.com"]
[Source "ChessBase"]
[SourceQuality "1"]
[TimeControl "40/5400+30:1800+30"]

1. e4 {[%emt 0:00:00]} c5 {[%emt 0:00:00]} 2. c3 {[%emt 0:00:00]} d6 {[%emt 0:00:00]} 3. d4 {[%emt 0:00:00]} Qc7 {[%emt 0:00:00]} 4. Nf3 {[%emt 0:00:39]} g6 {[%emt 0:02:59]} 5. Bd3 {[%emt 0:06:34]} Bg7 {[%emt 0:00:29]} 6. d5 {[%emt 0:01:08]} Nf6 {[%emt 0:01:04]} 7. O-O {[%emt 0:00:14]} O-O {[%emt 0:00:26]} 8. Re1 {[%emt 0:00:52]} Nbd7 {[%emt 0:05:43]} 9. Nbd2 $14 {[%emt 0:04:41]} Rb8 {[%emt 0:08:18]} 10. a4 {[%emt 0:03:56]} b6 {[%emt 0:05:23]} 11. Nf1 {[%emt 0:04:29]} Bb7 {[%emt 0:04:41]} 12. Bc2 {[%emt 0:00:23]} Rfe8 {[%emt 0:07:11]} 13. Bf4 {[%emt 0:19:55]} Nh5 {[%emt 0:04:53]} 14. Be3 {[%emt 0:00:26]} e6 {[%emt 0:05:38]} 15. dxe6 {[%emt 0:05:03]} fxe6 {[%emt 0:16:03]} 16. Ng3 {[%emt 0:02:29]} Nxg3 {[%emt 0:07:48]} 17. hxg3 {[%emt 0:00:06]} Nf6 {[%emt 0:07:54]} 18. Bf4 {[%emt 0:01:11]} e5 {[%emt 0:01:24]} 19. Bg5 {[%emt 0:01:30]} h6 {[%emt 0:02:58]} 20. Bxf6 {[%emt 0:00:51]} Bxf6 {[%emt 0:00:02]} 21. Qd2 {[%emt 0:01:13]} Kg7 {[%emt 0:02:28]} 22. g4 {[%emt 0:04:05]} Qe7 {[%emt 0:01:42]} 23. Nh2 {[%emt 0:04:21]} Bg5 {[%emt 0:00:57]} 24. Qd3 {[%emt 0:00:25]} Rbd8 {[%emt 0:01:03]} 25. Rad1 {[%emt 0:02:18]} Qf7 {[%emt 0:02:19]} 26. c4 {[%emt 0:01:44]} Rf8 {[%emt 0:01:36]} 27. Qe2 {[%emt 0:01:11]} Bc8 {[%emt 0:02:15]} 28. b3 {[%emt 0:02:08]} Qe7 {[%emt 0:03:27]} 29. g3 {[%emt 0:04:16]} Rf6 {[%emt 0:01:37]} 30. Bd3 {[%emt 0:02:20]} Rdf8 {[%emt 0:00:45]} 31. Kg2 {[%emt 0:03:51]} Qf7 {[%emt 0:00:14]} 32. Rf1 {[%emt 0:00:12]} Qe6 {[%emt 0:01:55]} 33. f3 {[%emt 0:03:34]} Rh8 {[%emt 0:01:34]} 34. Rh1 {[%emt 0:09:28]} h5 {[%emt 0:01:10]} 35. Bc2 {[%emt 0:04:40]} h4 {[%emt 0:00:07]} 36. Nf1 {[%emt 0:00:29]} Qf7 {[%emt 0:00:41]} 37. gxh4 {[%emt 0:02:13]} Rxh4 {[%emt 0:00:16]} 38. Rxh4 {[%emt 0:00:10]} Bxh4 {[%emt 0:00:01]} 39. Ne3 {[%emt 0:00:38]} Re6 {[%emt 0:01:48]} 40. Rh1 {[%emt 0:00:56]} Bg5 {[%emt 0:00:06]} 41. Nd5 {[%emt 0:32:24]} Re8 {[%emt 0:14:38]} 42. Qe1 {[%emt 0:00:00]} Rf8 {[%emt 0:01:28]} 43. Qg3 {[%emt 0:00:00]} Be6 {[%emt 0:04:04]} 44. Qh3 {[%emt 0:00:00]} Bxd5 {[%emt 0:00:02]} 45. exd5 {[%emt 0:00:00]} Qg8 {[%emt 0:05:27]} 1/2-1/2

[Event "ISR-ch Women 2018"]
[Site "Ma'alot-Tarshih"]
[Date "2018.12.18"]
[Round "7"]
[White "Ovechkin, Lilia"]
[Black "Orian, Noga"]
[Result "0-1"]
[ECO "D03"]
[WhiteElo "1779"]
[BlackElo "1343"]
[Annotator "NA"]
[PlyCount "92"]
[EventDate "2018.12.11"]
[EventType "swiss"]
[EventCountry "ISR"]
[SourceTitle "playchess.com"]
[Source "ChessBase"]
[SourceQuality "1"]
[TimeControl "40/5400+30:1800+30"]

1. d4 {[%emt 0:00:00]} d5 {[%emt 0:00:00]} 2. Bg5 {[%emt 0:01:38]} Nf6 {[%emt 0:00:33]} 3. e3 {[%emt 1:29:52]} Bf5 {[%emt 0:00:43]} 4. Nf3 {[%emt 0:11:06]} e6 {[%emt 0:01:01]} 5. Nbd2 {[%emt 0:09:04]} Nbd7 {[%emt 0:04:11]} 6. c4 {[%emt 0:08:38]} dxc4 {[%emt 0:01:14]} 7. Bxc4 {[%emt 0:01:28]} c6 {[%emt 0:00:54]} 8. e4 {[%emt 0:02:14]} Bg4 {[%emt 0:03:13]} 9. e5 {[%emt 0:02:07]} h6 {[%emt 0:00:14]} 10. exf6 {[%emt 0:02:49]} hxg5 {[%emt 0:00:16]} 11. fxg7 {[%emt 0:06:39]} Bxg7 {[%emt 0:00:10]} 12. Qb3 {[%emt 0:03:51]} Nb6 {[%emt 0:01:30]} 13. O-O-O {[%emt 0:46:15]} Bh6 {[%emt 1:22:31]} 14. Rhe1 {[%emt 0:07:30]} Nxc4 {[%emt 0:04:24]} 15. Qxc4 {[%emt 0:03:24]} Qd6 {[%emt 0:12:41]} 16. Re4 {[%emt 0:11:33]} Bf5 {[%emt 0:01:38]} 17. Re5 {[%emt 0:18:25]} O-O-O {[%emt 0:01:30]} 18. Rde1 {[%emt 0:06:40]} g4 {[%emt 0:01:04]} 19. Ng1 {[%emt 0:03:10]} Qxd4 {[%emt 0:01:47]} 20. Qxd4 {[%emt 0:01:27]} Rxd4 {[%emt 0:00:02]} 21. Rd1 {[%emt 0:01:58]} Rhd8 {[%emt 0:00:07]} 22. Re2 {[%emt 0:00:26]} Bd3 {[%emt 0:00:36]} 23. Re3 {[%emt 0:06:59]} Bxe3 {[%emt 0:00:28]} 24. fxe3 {[%emt 0:00:02]} R4d5 {[%emt 0:00:09]} 25. b4 {[%emt 0:01:15]} a5 {[%emt 0:00:25]} 26. bxa5 {[%emt 0:00:47]} Rc5+ {[%emt 0:00:26]} 27. Kb2 {[%emt 0:00:11]} Bc2 {[%emt 0:00:06]} 28. Nb3 {[%emt 0:00:35]} Bxb3 {[%emt 0:01:08]} 29. Rxd8+ {[%emt 0:00:07]} Kxd8 {[%emt 0:00:02]} 30. axb3 {[%emt 0:00:24]} Re5 {[%emt 0:00:10]} 31. Ne2 {[%emt 0:00:48]} Rxe3 {[%emt 0:00:08]} 32. Nd4 {[%emt 0:00:45]} e5 {[%emt 0:00:19]} 33. a6 {[%emt 0:00:07]} bxa6 {[%emt 0:00:12]} 34. Nxc6+ {[%emt 0:05:41]} Kc7 {[%emt 0:00:16]} 35. Nb4 {[%emt 0:00:14]} Re2+ {[%emt 0:00:09]} 36. Kc3 {[%emt 0:00:14]} Rxg2 {[%emt 0:00:20]} 37. Nxa6+ {[%emt 0:00:35]} Kb6 {[%emt 0:00:09]} 38. Nb8 {[%emt 0:00:14]} Kc7 {[%emt 0:00:37]} 39. Na6+ {[%emt 0:00:07]} Kd6 {[%emt 0:00:07]} 40. b4 {[%emt 0:00:28]} Rxh2 {[%emt 0:00:09]} 41. Nc5 {[%emt 0:30:09]} Kd5 {[%emt 0:30:19]} 42. Nd3 {[%emt 0:00:31]} Rh3 {[%emt 0:00:39]} 43. Kd2 {[%emt 0:00:17]} Rxd3+ {[%emt 0:00:06]} 44. Kxd3 {[%emt 0:00:17]} g3 {[%emt 0:00:07]} 45. Ke3 {[%emt 0:00:11]} f5 {[%emt 0:00:04]} 46. Kf3 {[%emt 0:00:32]} f4 {[%emt 0:00:05]} 0-1

[Event "ISR-ch Women 2018"]
[Site "Ma'alot-Tarshih"]
[Date "2018.12.18"]
[Round "7"]
[White "Shaul Zeidner, Lyad"]
[Black "Brusilovski, Lena"]
[Result "0-1"]
[ECO "B21"]
[WhiteElo "1671"]
[BlackElo "1886"]
[Annotator "NA"]
[PlyCount "110"]
[EventDate "2018.12.11"]
[EventType "swiss"]
[EventCountry "ISR"]
[SourceTitle "playchess.com"]
[Source "ChessBase"]
[SourceQuality "1"]
[TimeControl "40/5400+30:1800+30"]

1. e4 {[%emt 0:00:00]} c5 {[%emt 0:00:00]} 2. d4 {[%emt 0:00:00]} cxd4 {[%emt 0:00:40]} 3. c3 {[%emt 0:00:00]} dxc3 {[%emt 0:01:28]} 4. Nxc3 {[%emt 0:00:00]} Nc6 {[%emt 0:00:24]} 5. Bc4 {[%emt 0:00:08]} Nf6 {[%emt 0:00:59]} 6. Nf3 {[%emt 0:00:48]} d6 {[%emt 0:01:33]} 7. h3 {[%emt 0:00:34]} e6 {[%emt 0:00:24]} 8. O-O {[%emt 0:00:31]} Be7 {[%emt 0:00:24]} 9. Qe2 {[%emt 0:00:35]} Nd7 {[%emt 0:01:02]} 10. Bf4 {[%emt 0:02:25]} Nb6 {[%emt 0:00:46]} 11. Bb3 {[%emt 0:00:52]} O-O {[%emt 0:00:23]} 12. Rfd1 {[%emt 0:00:44]} a6 {[%emt 0:00:36]} 13. Rac1 {[%emt 0:01:04]} Na5 {[%emt 0:07:15]} 14. Bc2 {[%emt 0:01:04]} Qc7 {[%emt 0:00:28]} 15. Bb1 $14 {[%emt 0:02:20]} (15. e5 $18 dxe5 16. Nxe5) 15... Qb8 {[%emt 0:00:24]} (15... Nc6 $1 $11 {remains equal.}) 16. Qc2 {[%emt 0:04:35]} e5 {[%emt 0:00:54]} 17. Be3 {[%emt 0:03:31]} Nbc4 {[%emt 0:01:50]} 18. Nd5 {[%emt 0:03:25]} Bd8 {[%emt 0:00:32]} 19. Qe2 {[%emt 0:01:37]} Nxe3 {[%emt 0:00:33]} 20. Nxe3 {[%emt 0:01:05]} Be6 {[%emt 0:02:52]} 21. Qc2 {[%emt 0:08:13]} b5 {[%emt 0:11:47]} 22. b3 {[%emt 0:08:46]} Ra7 {[%emt 0:07:31]} 23. Qd2 {[%emt 0:04:35]} Rd7 {[%emt 0:01:57]} 24. Qb4 {[%emt 0:10:36]} h6 {[%emt 0:18:54]} 25. Nd5 {[%emt 0:02:24]} Kh8 {[%emt 0:11:31]} 26. Nxe5 {[%emt 0:02:16]} Rb7 {[%emt 0:01:19]} 27. Nc6 {[%emt 0:02:06]} Nxc6 {[%emt 0:00:24]} 28. Rxc6 {[%emt 0:00:09]} Rd7 {[%emt 0:02:56]} 29. a4 {[%emt 0:05:29]} Bg5 {[%emt 0:03:17]} 30. Rxa6 {[%emt 0:01:33]} bxa4 {[%emt 0:01:06]} 31. Qxb8 {[%emt 0:00:23]} Rxb8 {[%emt 0:00:23]} 32. bxa4 {[%emt 0:00:24]} f5 {[%emt 0:00:48]} 33. Nc3 {[%emt 0:00:57]} Bb3 {[%emt 0:05:35]} 34. Bd3 {[%emt 0:21:54]} Bxd1 {[%emt 0:02:27]} 35. Nxd1 {[%emt 0:00:02]} fxe4 {[%emt 0:02:27]} 36. Bxe4 {[%emt 0:00:17]} Re7 {[%emt 0:00:59]} 37. Bf3 {[%emt 0:02:44]} Re1+ {[%emt 0:01:36]} 38. Kh2 {[%emt 0:00:08]} Rb3 {[%emt 0:01:19]} 39. Bd5 {[%emt 0:03:03]} Rb8 {[%emt 0:01:27]} 40. Nc3 {[%emt 0:01:27]} Bf6 {[%emt 0:01:30]} 41. Nb5 {[%emt 0:31:06]} Rd1 {[%emt 0:30:49]} 42. Bf3 {[%emt 0:01:05]} Rd2 {[%emt 0:00:42]} 43. Kg1 {[%emt 0:00:19]} d5 {[%emt 0:00:32]} 44. Kf1 {[%emt 0:01:37]} Rc8 {[%emt 0:01:07]} 45. Re6 {[%emt 0:04:13]} d4 {[%emt 0:02:46]} 46. Ke1 {[%emt 0:01:13]} Bg5 {[%emt 0:00:57]} 47. Kf1 {[%emt 0:00:42]} d3 {[%emt 0:00:22]} 48. Nd6 {[%emt 0:00:27]} Rc1+ {[%emt 0:00:25]} 49. Re1 {[%emt 0:00:02]} Ra2 {[%emt 0:00:48]} 50. Nf7+ {[%emt 0:00:27]} Kg8 {[%emt 0:00:40]} 51. Nxg5 {[%emt 0:00:29]} d2 {[%emt 0:02:09]} 52. Rd1 {[%emt 0:00:25]} Raa1 {[%emt 0:00:56]} 53. Ne4 {[%emt 0:00:14]} Rxd1+ {[%emt 0:00:39]} 54. Bxd1 {[%emt 0:00:02]} Rxd1+ {[%emt 0:00:17]} 55. Ke2 {[%emt 0:00:13]} Re1+ {[%emt 0:00:07]} 0-1

[Event "ISR-ch Women 2018"]
[Site "Ma'alot-Tarshih"]
[Date "2018.12.19"]
[Round "8"]
[White "Shvayger, Yuliya"]
[Black "Katkov, Michelle"]
[Result "1/2-1/2"]
[ECO "C77"]
[WhiteElo "2393"]
[BlackElo "1887"]
[Annotator "NA"]
[PlyCount "96"]
[EventDate "2018.12.12"]
[EventType "swiss"]
[EventCountry "ISR"]
[SourceTitle "playchess.com"]
[Source "ChessBase"]
[SourceQuality "1"]
[TimeControl "40/5400+30:1800+30"]

1. e4 {[%emt 0:00:00]} e5 {[%emt 0:00:00]} 2. Nf3 {[%emt 0:00:00]} Nc6 {[%emt 0:00:00]} 3. Bb5 {[%emt 0:00:00]} a6 {[%emt 0:00:08]} 4. Ba4 {[%emt 0:00:05]} Nf6 {[%emt 0:00:12]} 5. d3 {[%emt 0:00:15]} b5 {[%emt 0:00:53]} 6. Bb3 {[%emt 0:00:17]} Bc5 {[%emt 0:00:18]} 7. Nc3 {[%emt 0:01:04]} d6 {[%emt 0:00:56] C77: Ruy Lopez: 3...a6 4 Ba4 Nf6, unusual lines} 8. Nd5 {[%emt 0:00:28]} h6 {[%emt 0:01:02]} 9. c3 {[%emt 0:01:02]} (9. O-O O-O 10. Be3 Bxe3 11. fxe3 Na5 12. Nxf6+ Qxf6 13. Bd5 c6 14. Nd4 Qg5 15. Nxc6 Nxc6 16. Bxc6 Qxe3+ {½-½ (32) Anand,V (2760)-Mamedyarov,S (2808) Stavanger 2018}) 9... Nxd5 {[%emt 0:13:35] LiveBook: 3 Games} 10. Bxd5 {[%emt 0:00:26]} Bd7 {[%emt 0:02:57]} 11. O-O {[%emt 0:04:38]} Bb6 {[%emt 0:05:53]} 12. d4 {[%emt 0:02:03]} Qf6 {[%emt 0:04:05]} 13. Be3 {[%emt 0:05:31]} Rb8 {[%emt 0:07:06]} 14. a4 {[%emt 0:08:59]} O-O $146 {[%emt 0:05:31]} ({Predecessor:} 14... exd4 15. cxd4 {½-½ (76) Borisek,J (2565)-Makoto,R (2403) chess.com INT 2017}) 15. axb5 {[%emt 0:13:28]} axb5 {[%emt 0:00:17]} 16. Ra6 {[%emt 0:00:51]} exd4 {[%emt 0:03:37]} 17. Nxd4 {[%emt 0:00:11]} Nxd4 {[%emt 0:04:40]} 18. Bxd4 {[%emt 0:00:29]} Bxd4 {[%emt 0:00:26]} 19. cxd4 {[%emt 0:00:01]} Qe7 {[%emt 0:11:25]} 20. Ra7 {[%emt 0:02:07]} Rfc8 {[%emt 0:02:18]} 21. Qf3 {[%emt 0:00:55]} Be6 {[%emt 0:12:24]} 22. Bb7 {[%emt 0:02:24]} c5 {[%emt 0:02:06]} 23. Bxc8 {[%emt 0:03:58]} Qxa7 {[%emt 0:00:09]} 24. Bxe6 {[%emt 0:00:05]} fxe6 {[%emt 0:00:05]} 25. Qg4 {[%emt 0:01:04]} Qe7 {[%emt 0:02:00]} 26. dxc5 {[%emt 0:03:34]} dxc5 {[%emt 0:00:03]} 27. Rd1 {[%emt 0:00:07]} Qf6 {[%emt 0:03:13]} 28. Qe2 {[%emt 0:01:31]} Rd8 {[%emt 0:02:32]} 29. Rxd8+ {[%emt 0:03:40]} Qxd8 {[%emt 0:00:04]} 30. Qxb5 {[%emt 0:00:07]} Qd1+ {[%emt 0:00:06]} 31. Qf1 {[%emt 0:00:04]} Qc2 {[%emt 0:00:19]} 32. Qa1 {[%emt 0:02:16]} Qxe4 {[%emt 0:00:07]} 33. h3 {[%emt 0:00:41]} Qd4 {[%emt 0:02:55]} 34. Qc1 {[%emt 0:00:37]} c4 {[%emt 0:02:01]} 35. Qc3 {[%emt 0:00:39]} Qd5 {[%emt 0:02:39]} 36. Kh2 {[%emt 0:01:26]} Qd6+ {[%emt 0:01:50]} 37. g3 {[%emt 0:01:07]} Qd5 {[%emt 0:00:45]} 38. Qe3 {[%emt 0:02:33]} e5 {[%emt 0:00:08]} 39. h4 {[%emt 0:04:11]} Qb5 {[%emt 0:01:05]} 40. Qd2 {[%emt 0:00:21]} Qc5 {[%emt 0:03:22]} 41. Kg2 {[%emt 0:30:23]} Qc6+ {[%emt 0:30:14]} 42. Kg1 {[%emt 0:02:10]} Qe4 $11 {[%emt 0:00:48]} 43. Qc3 {[%emt 0:01:41]} Kf7 {[%emt 0:00:39]} 44. Kf1 {[%emt 0:03:45]} Ke6 {[%emt 0:02:04]} 45. Kg1 {[%emt 0:01:00]} h5 {[%emt 0:03:59]} 46. Qb4 {[%emt 0:01:00]} g6 {[%emt 0:00:36]} 47. Qb6+ {[%emt 0:00:49]} Kf7 {[%emt 0:00:00]} 48. Qb4 {[%emt 0:00:00]} Qd4 {[%emt 0:02:28]} 1/2-1/2